bitfinex-derivatives/quotes_ETHF0:USTF0_20241105
["timestamp","ask_amount","ask_price","bid_price","bid_amount"]
[1730829911340,2.98453795,2455.9,2455.7,4.55262]
[1730829911949,2.57733795,2455.9,2455.8,0.40721]
[1730829912240,2.98453795,2455.9,2455.8,0.40721]
[1730829913537,2.98453795,2455.9,2455.7,4.1454]
[1730829913538,0.40721,2455.8,2455.7,1.34483]
[1730829913738,0.40721,2455.8,2451.7,12.97654154]
[1730829913739,3.1039717,2455.9,2455.1,3.52442036]
[1730829913947,2.51303226,2455.6,2455.4,1.54928]
[1730829914332,2.10577226,2455.5,2455.4,1.142]
[1730829914535,2.57657226,2455.5,2455.4,1.142]
[1730829914742,2.98383226,2455.5,2455.4,1.142]
[1730829914941,2.57657226,2455.5,2455.4,1.142]
[1730829915343,2.57657226,2455.5,2455.4,1.54928]
[1730829915736,0.4708,2455.5,2455.4,1.54928]
[1730829916146,0.4708,2455.5,2455.4,1.142]
[1730829916346,0.4708,2455.5,2455.4,1.54928]
[1730829917445,0.87806,2455.5,2455.4,1.54928]
[1730829920649,0.4708,2455.5,2455.4,1.54928]
[1730829920957,0.87806,2455.5,2455.4,1.54928]
[1730829921454,0.87806,2455.5,2455.4,0.40728]
[1730829922541,0.87806,2455.5,2455.3,0.40729]
[1730829923245,0.87806,2455.5,2455.2,2.4974]
[1730829923246,0.4708,2455.5,2455.4,0.40728]
[1730829923753,47.00147226,2455.8,2455.5,0.40726]
[1730829923754,0.40724,2455.7,2455.5,0.40726]
[1730829924544,41.249,2455.8,2455.7,0.40723]
[1730829924739,41.249,2455.8,2455.4,1.01821]
[1730829924740,2.10577226,2456.0,2455.9,0.4072]
[1730829924947,0.40719,2456.0,2455.8,0.40721]
[1730829925344,0.4072,2455.9,2455.7,1.77622]
[1730829926057,43.35477226,2456.1,2455.7,0.906]
[1730829926248,0.40721,2455.8,2455.7,0.906]
[1730829929756,2.10577226,2456.0,2455.7,0.906]
[1730829929954,0.4072,2455.9,2455.7,0.906]
[1730829930152,2.10577226,2456.0,2455.7,1.31322]
[1730829930345,0.40721,2455.8,2455.7,1.31322]
[1730829931950,3.0364817,2455.8,2455.7,1.31322]
[1730829932150,2.6292717,2455.8,2455.7,1.31322]
[1730829932361,3.0364817,2455.8,2455.7,1.31322]
[1730829932757,2.6292717,2455.8,2455.7,1.31322]
[1730829933052,2.6292717,2455.9,2455.7,1.31322]
[1730829933263,0.40721,2455.8,2455.7,1.31322]
[1730829933564,3.0364817,2455.8,2455.7,1.31322]
[1730829933948,0.40721,2455.8,2455.7,1.31322]
[1730829934152,3.0364817,2455.9,2455.7,1.31322]
[1730829934654,2.6292717,2456.0,2455.7,7.295641]
[1730829934860,2.10763923,2455.9,2455.8,0.40721]
[1730829935059,3.0364617,2456.0,2455.8,0.40721]
[1730829935352,2.6292717,2456.0,2455.7,4.1138]
[1730829935553,2.1072624,2455.9,2455.8,0.40721]
[1730829935751,0.40721,2455.8,2455.7,3.2078]
[1730829935950,0.4427,2455.8,2455.5,0.4725]
[1730829936161,2.58022105,2455.7,2455.6,0.40725]
[1730829936347,0.4731,2455.7,2455.6,0.40725]
[1730829937959,2.57897494,2455.7,2455.6,0.40725]
[1730829938154,0.4731,2455.7,2455.6,0.40725]
[1730829938551,2.57893487,2455.7,2455.6,0.40725]
[1730829938954,0.4731,2455.7,2455.6,0.40725]
[1730829939651,0.88033,2455.7,2455.6,0.40725]
[1730829939845,0.40725,2455.6,2455.5,0.87976]
[1730829940655,0.40726,2455.5,2455.4,0.88008]
[1730829941358,41.20726,2455.6,2455.5,0.40726]
[1730829941561,40.8,2455.6,2455.5,0.40726]
[1730829941760,41.20725,2455.6,2455.5,0.40726]
[1730829942453,0.40726,2455.5,2455.4,0.88007]
[1730829942651,0.40729,2455.4,2455.3,0.40729]
[1730829942853,0.87177,2455.5,2455.4,0.40728]
[1730829943358,4.94457,2455.5,2455.4,0.40728]
[1730829945061,4.0728,2455.5,2455.4,0.40728]
[1730829945262,4.48006,2455.5,2455.4,0.40728]
[1730829945963,7.1093317,2455.5,2455.4,0.40728]
[1730829946265,4.0728,2455.5,2455.4,0.40728]
[1730829946666,4.48006,2455.5,2455.4,0.40728]
[1730829947275,7.1093317,2455.5,2455.4,0.40728]
[1730829948370,2.6292717,2455.5,2455.4,0.40728]
[1730829948583,2.10819078,2455.5,2455.4,0.40728]
[1730829949669,2.10819078,2455.5,2455.4,1.87383866]
[1730829951472,2.10819078,2455.5,2455.4,0.40728]
[1730829952164,2.10819078,2455.5,2455.4,3.58485147]
[1730829952370,2.10819078,2455.6,2455.5,0.40726]
[1730829952562,2.10819078,2455.6,2455.5,0.86696]
[1730829952761,2.6292717,2455.6,2455.5,0.86696]
[1730829952961,2.6292717,2455.6,2455.5,0.4597]
[1730829953168,3.0365217,2455.6,2455.5,0.86696]
[1730829953469,2.6292717,2455.6,2455.5,0.86696]
[1730829953969,3.42303259,2455.7,2455.5,0.86696]
[1730829954166,1.31404,2455.7,2455.5,0.40726]
[1730829954368,2.51640569,2455.6,2455.5,0.40726]
[1730829954670,4.62560581,2455.6,2455.5,0.40726]
[1730829954866,4.21835581,2455.6,2455.5,0.40726]
[1730829955073,4.62560581,2455.6,2455.5,0.40726]
[1730829956573,4.21835581,2455.6,2455.5,0.40726]
[1730829956766,2.10920012,2455.6,2455.5,0.40726]
[1730829956965,2.51645012,2455.6,2455.5,0.40726]
[1730829957571,0.40728,2455.5,2455.4,0.40728]
[1730829957771,0.84668,2455.5,2455.4,0.40728]
[1730829959470,0.40728,2455.4,2455.3,4.48509]
[1730829959661,0.40728,2455.4,2455.3,3.61509]
[1730829960265,0.4394,2455.5,2455.4,0.40728]
[1730829960266,0.84667,2455.5,2455.4,0.40728]
[1730829960462,2.9570666,2455.5,2455.4,0.40728]
[1730829960868,0.84667,2455.5,2455.4,0.40728]
[1730829961266,2.95702138,2455.5,2455.4,0.40728]
[1730829961563,0.40729,2455.4,2455.3,0.40729]
[1730829961962,2.5175638,2455.4,2455.3,0.40729]
[1730829962876,2.1102738,2455.4,2455.3,0.40729]
[1730829964077,4.22111417,2455.5,2455.3,4.0728]
[1730829964380,2.11035138,2455.5,2455.4,4.95128]
[1730829964673,2.11035138,2455.5,2455.4,9.1938449]
[1730829964870,2.11035138,2455.5,2455.4,10.49168766]
[1730829965568,2.11035138,2455.5,2455.4,9.1938449]
[1730829965874,2.11035138,2455.5,2455.4,10.49166935]
[1730829966476,2.11035138,2455.5,2455.4,11.00822874]
[1730829966879,2.11035138,2455.5,2455.4,9.71040429]
[1730829967078,2.11035138,2455.5,2455.4,9.1938449]
[1730829967375,2.11035138,2455.5,2455.4,9.7104106]
[1730829971571,2.11035138,2455.5,2455.4,2.46003913]
[1730829971774,2.11035138,2455.5,2455.4,2.46004622]
[1730829972278,2.98111138,2455.5,2455.4,1.06499343]
[1730829972477,3.02065138,2455.5,2455.4,1.06499343]
[1730829972681,3.42791138,2455.5,2455.4,1.06499343]
[1730829973282,43.82065138,2455.5,2455.4,1.06499343]
[1730829973475,44.22791138,2455.5,2455.4,1.06499343]
[1730829973682,0.40728,2455.4,2455.2,4.67732246]
[1730829974083,43.82065138,2455.5,2455.2,4.67732246]
[1730829974290,44.22793138,2455.5,2455.2,4.67732246]
[1730829974784,44.22793138,2455.5,2455.3,0.40729]
[1730829975678,43.82065138,2455.5,2455.2,4.27001246]
[1730829975875,0.4073,2455.3,2455.2,4.27001246]
[1730829976073,3.6151,2455.3,2455.2,4.27001246]
[1730829976379,10.86547147,2455.3,2455.2,2.28372276]
[1730829978384,7.6879,2455.3,2455.2,2.28372276]
[1730829979588,10.86547147,2455.3,2455.2,2.28372276]
[1730829980482,7.6879,2455.3,2455.2,2.28372276]
[1730829980884,10.86547147,2455.3,2455.2,0.97992276]
[1730829981281,14.03362799,2455.3,2455.2,0.97992276]
[1730829981781,14.02823993,2455.3,2455.2,0.97992276]
[1730829982590,10.86547147,2455.3,2455.2,0.97992276]
[1730829984388,15.07709584,2455.3,2455.2,0.97992276]
[1730829984791,10.86547147,2455.3,2455.2,0.97992276]
[1730829985286,10.86547147,2455.3,2455.2,0.15235276]
[1730829985501,10.86547147,2455.3,2455.0,0.80334932]
[1730829985502,0.40733,2455.1,2455.0,0.80334932]
[1730829985693,10.56676731,2455.1,2454.7,2.49034641]
[1730829985994,10.56676731,2455.1,2454.5,7.08221222]
[1730829985995,0.40741,2454.6,2454.5,7.08221222]
[1730829986205,5.1456658,2454.6,2454.5,7.08221222]
[1730829986407,50.0200658,2454.6,2454.5,7.08221222]
[1730829986704,53.18798764,2454.6,2454.5,7.08221222]
[1730829987504,53.18798764,2454.6,2454.5,2.81227244]
[1730829987704,52.66031577,2454.6,2454.5,2.81227244]
[1730829988223,48.9793269,2454.6,2454.5,2.81227244]
[1730829988707,52.65827948,2454.6,2454.5,2.81227244]
[1730829990307,52.65827948,2454.6,2454.5,7.82e-06]
[1730829990499,0.40748,2454.2,2454.1,1.06779826]
[1730829990696,9.94548927,2454.2,2454.1,1.06779826]
[1730829991003,14.01988927,2454.2,2454.1,1.06779826]
[1730829991304,13.49436802,2454.2,2454.1,0.17556826]
[1730829991505,10.86725147,2454.2,2454.1,8.26e-06]
[1730829991808,10.93715907,2454.2,2454.1,8.26e-06]
[1730829992900,10.86725147,2454.2,2454.1,8.26e-06]
[1730829993107,10.93715928,2454.2,2454.1,8.26e-06]
[1730829993514,10.86725147,2454.2,2454.1,8.26e-06]
[1730829995413,3.61528,2454.2,2454.1,8.26e-06]
[1730829995608,3.61528,2454.2,2454.1,1.31470826]
[1730829997814,3.61528,2454.2,2454.1,1.3147]
[1730829998018,4.66469812,2454.2,2454.1,1.3147]
[1730829998410,3.61528,2454.2,2454.1,1.3147]
[1730830000317,1.04941812,2454.4,2454.1,1.7222]
[1730830000516,7.95949865,2454.5,2454.2,0.40747]
[1730830000517,7.43478959,2454.5,2454.2,0.40747]
[1730830000821,0.40746,2454.3,2454.2,0.40747]
[1730830001027,0.40745,2454.4,2454.3,0.40746]
[1730830002013,3.58501147,2454.5,2454.4,0.40745]
[1730830002415,40.8,2454.6,2454.5,0.40743]
[1730830002617,0.4074,2454.7,2454.2,5.09308]
[1730830002811,0.4074,2454.7,2454.6,0.40741]
[1730830003009,41.2074,2454.7,2454.6,0.40741]
[1730830003417,40.8,2454.7,2454.6,0.40741]
[1730830006514,40.8,2454.7,2454.3,4.22645]
[1730830006515,0.40737,2454.9,2454.3,4.22645]
[1730830006814,4.25721812,2455.1,2454.9,0.40735]
[1730830006815,4.66455812,2455.1,2454.9,0.40735]
[1730830007017,4.66455812,2455.1,2455.0,1.3349]
[1730830007018,3.61514,2455.1,2455.0,1.3349]
[1730830007213,3.61513,2455.1,2455.0,1.3349]
[1730830007422,1.04941812,2455.2,2455.1,0.40733]
[1730830007615,1.04941812,2455.2,2455.1,0.40732]
[1730830007616,40.8,2455.2,2455.1,0.40732]
[1730830007812,4.35221812,2455.5,2455.1,4.0728]
[1730830008115,7.93701959,2455.8,2455.1,3.2078]
[1730830008311,40.8,2455.7,2455.1,3.2078]
[1730830008516,40.8,2455.7,2455.4,3.2078]
[1730830008724,40.8,2455.7,2455.6,0.40725]
[1730830009117,40.8,2455.7,2455.4,3.61507]
[1730830009425,0.40726,2455.6,2455.4,3.2078]
[1730830009814,0.40725,2455.6,2455.4,3.61507]
[1730830010321,40.8,2455.7,2455.6,0.40725]
[1730830010715,40.8,2455.7,2455.6,4.47925]
[1730830013616,40.8,2455.7,2455.5,1.3416]
[1730830014013,40.8,2455.7,2455.6,0.40725]
[1730830014425,40.8,2455.7,2455.5,1.3416]
[1730830014626,41.20723,2455.7,2455.5,1.74886]
[1730830015212,41.20723,2455.7,2455.6,0.40725]
[1730830015213,40.8,2455.7,2455.6,0.40725]
[1730830015523,3.70998,2456.1,2455.9,0.40719]
[1730830015717,3.61498,2456.1,2456.0,0.9292]
[1730830015926,44.41498,2456.1,2456.0,0.9292]
[1730830016922,41.20718,2456.1,2456.0,0.9292]
[1730830017128,44.41498,2456.1,2456.0,0.9292]
[1730830018127,0.40724,2455.7,2455.5,4.04576]
[1730830018320,0.40724,2455.7,2455.5,0.40725]
[1730830018521,0.40724,2455.7,2455.6,0.40725]
[1730830018717,1.04941812,2456.0,2455.3,0.9139]
[1730830019015,45.05721812,2456.1,2455.8,0.4072]
[1730830019226,45.05721812,2456.1,2455.4,4.22601]
[1730830019525,45.05721812,2456.1,2455.4,3.2078]
[1730830020026,0.40719,2456.0,2455.8,0.4072]
[1730830020232,0.40719,2456.0,2455.4,4.22598]
[1730830020726,0.40719,2456.0,2455.8,0.4072]
[1730830021427,1.04941812,2456.0,2455.4,3.2078]
[1730830021623,0.40724,2455.7,2455.6,0.40725]
[1730830022031,0.4416,2455.8,2455.7,0.40723]
[1730830022419,1.91791812,2455.9,2455.8,0.40721]
[1730830023523,0.8685,2455.9,2455.8,0.40721]
[1730830023725,1.04941812,2456.0,2455.8,0.40721]
[1730830024034,1.45661812,2456.0,2455.8,0.40721]
[1730830025322,42.69029812,2456.1,2455.9,0.4072]
[1730830025522,0.40718,2456.0,2455.9,0.4072]
[1730830025824,0.40721,2455.8,2455.7,3.2078]
[1730830027423,0.40723,2455.7,2455.6,0.40725]
[1730830027622,1.31533,2455.7,2455.6,0.40725]
[1730830028122,0.40726,2455.5,2455.4,3.2078]
[1730830029123,3.17757147,2455.6,2455.0,0.4727]
[1730830029319,0.40733,2455.2,2455.0,0.88004]
[1730830029930,0.40733,2455.2,2455.1,0.40733]
[1730830031128,3.17757147,2455.6,2455.1,0.40733]
[1730830031432,0.4073,2455.3,2455.2,0.40731]
[1730830031738,0.40732,2455.2,2455.1,0.40732]
[1730830032031,0.4426,2455.2,2455.1,0.40732]
[1730830036633,0.40733,2455.1,2455.0,4.08783]
[1730830036828,0.8746,2455.2,2455.0,3.6805]
[1730830037024,0.40733,2455.1,2455.0,4.08783]
[1730830037534,0.40733,2455.1,2455.0,3.2078]
[1730830037741,0.40738,2454.8,2454.7,4.07159]
[1730830037947,0.8746,2455.2,2454.7,3.6642]
[1730830038238,0.40738,2454.9,2454.8,0.40738]
[1730830038830,40.8,2455.1,2454.7,3.6642]
[1730830039027,41.20734,2455.1,2455.0,0.40735]
[1730830039437,40.8,2455.1,2454.9,0.40735]
[1730830039739,0.40735,2455.0,2454.8,0.85197]
[1730830040140,0.40736,2454.9,2454.8,0.4446]
[1730830040535,0.40736,2454.9,2454.1,1.35119305]
[1730830040536,0.40741,2454.7,2454.5,0.40743]
[1730830040741,0.40743,2454.5,2454.3,0.8978]
[1730830040938,0.40743,2454.5,2454.3,1.30526]
[1730830041341,0.4551,2454.5,2454.4,0.40745]
[1730830041740,43.97757147,2455.1,2454.8,0.40737]
[1730830042043,0.40737,2454.9,2454.7,3.61519]
[1730830042639,44.87397147,2455.1,2454.7,3.2078]
[1730830042841,0.40738,2454.8,2454.7,3.2078]
[1730830043342,0.40737,2454.9,2454.7,3.61519]
[1730830043639,0.40738,2454.8,2454.7,3.2078]
[1730830044235,0.40741,2454.7,2454.5,0.87662]
[1730830044445,0.40742,2454.6,2454.4,3.61523]
[1730830045846,0.40741,2454.7,2454.5,0.40743]
[1730830048247,0.4283,2455.0,2454.3,4.1056]
[1730830048641,0.4074,2454.7,2454.6,0.40741]
[1730830050134,0.40739,2454.8,2454.7,0.4074]
[1730830050438,0.4283,2455.0,2454.4,3.2078]
[1730830050439,0.40737,2454.9,2454.8,0.40737]
[1730830050648,0.8964,2455.1,2454.5,1.01857]
[1730830050848,0.40737,2454.9,2454.8,0.40737]
[1730830051741,0.8964,2455.1,2454.7,3.2078]
[1730830051948,0.40737,2454.9,2454.8,0.40737]
[1730830052346,0.40737,2454.9,2454.8,0.85637]
[1730830053960,0.40737,2454.9,2454.8,1.31917]
[1730830054655,0.40736,2455.0,2454.9,0.40736]
[1730830055952,0.4551,2455.1,2455.0,0.40735]
[1730830056156,40.8,2455.2,2455.1,0.40733]
[1730830056453,41.20731,2455.2,2455.1,0.40733]
[1730830056756,0.40735,2455.0,2454.9,0.83916]
[1730830057467,0.40735,2455.0,2454.9,0.40736]
[1730830058368,0.40735,2455.0,2454.8,2.0448]
[1730830058369,0.40736,2454.9,2454.8,2.45217]
[1730830058671,0.40736,2454.9,2454.8,2.0448]
[1730830058967,0.40736,2454.9,2454.8,2.45218]
[1730830060560,0.40734,2455.1,2454.8,6.1184]
[1730830060763,40.8,2455.2,2454.9,0.40736]
[1730830060764,0.40735,2455.0,2454.9,0.40736]
[1730830061071,1.98489591,2455.0,2454.9,0.40736]
[1730830061466,0.40736,2454.9,2454.8,2.45217]
[1730830061670,1.98490591,2454.9,2454.8,2.45217]
[1730830062464,1.05187159,2454.9,2454.8,2.45218]
[1730830062669,1.45923159,2454.9,2454.8,2.45218]
[1730830063866,1.98490591,2454.9,2454.8,2.45218]
[1730830064673,1.57754591,2454.9,2454.8,2.45218]
[1730830065774,1.98490591,2454.9,2454.8,2.45218]
[1730830066478,6.38537147,2455.4,2454.8,6.1184]
[1730830066479,2.10339454,2455.4,2454.8,6.1184]
[1730830066667,0.40729,2455.4,2455.2,3.61511]
[1730830066865,40.8,2455.4,2455.3,0.4714]
[1730830067075,41.20728,2455.4,2455.3,0.4714]
[1730830067468,43.31067454,2455.4,2455.3,0.4714]
[1730830067871,46.97619454,2455.4,2455.2,3.2078]
[1730830068072,1.3239,2455.3,2455.2,3.2078]
[1730830068376,3.42729454,2455.3,2455.2,3.2078]
[1730830068869,10.67766601,2455.3,2455.2,3.2078]
[1730830069275,8.57427147,2455.3,2455.1,0.40732]
[1730830069470,2.55437686,2455.2,2455.1,3.61512]
[1730830069777,2.96168686,2455.2,2455.1,3.2078]
[1730830071572,0.85531,2455.2,2455.1,3.2078]
[1730830071772,0.85531,2455.2,2455.1,3.61513]
[1730830072076,0.85531,2455.2,2455.1,3.2078]
[1730830072570,3.48455318,2455.2,2455.1,3.2078]
[1730830073683,0.85531,2455.2,2455.1,3.2078]
[1730830074365,3.08383121,2455.2,2455.1,0.40733]
[1730830074564,3.49114121,2455.2,2455.1,0.40733]
[1730830075183,3.08383121,2455.2,2455.1,0.40733]
[1730830075474,0.448,2455.2,2455.1,0.40733]
[1730830076284,3.4937004,2455.2,2455.1,0.40733]
[1730830076573,0.40734,2455.1,2455.0,0.40734]
[1730830076777,2.6386074,2455.1,2455.0,0.40734]
[1730830077174,3.0866074,2455.2,2455.1,0.40733]
[1730830078376,3.4939174,2455.2,2455.1,0.40733]
[1730830078779,3.0866074,2455.2,2454.7,4.1244]
[1730830078968,3.0866074,2455.2,2453.9,10.191]
[1730830078969,2.63861673,2454.8,2454.1,4.32153]
[1730830079169,2.11024032,2454.6,2454.5,0.83832]
[1730830079971,2.11024032,2454.6,2454.5,4.91272]
[1730830080569,0.8941,2455.1,2455.0,0.40735]
[1730830080970,0.4437,2455.1,2455.0,0.40735]
[1730830081570,3.16524972,2455.3,2455.2,0.40731]
[1730830081776,0.4432,2455.3,2455.2,0.40731]
[1730830082680,41.2504,2455.4,2455.3,0.4073]
[1730830083083,40.8,2455.4,2455.3,0.4073]
[1730830083284,0.4609,2455.6,2455.5,0.40726]
[1730830083784,41.2609,2455.6,2455.5,0.40726]
[1730830084179,41.66815,2455.6,2455.5,0.40726]
[1730830084382,40.8,2455.6,2455.5,0.40726]
[1730830084587,43.43778611,2455.6,2455.5,4.48006]
[1730830085379,43.43778611,2455.6,2455.5,0.40726]
[1730830085380,2.63778611,2455.6,2455.5,0.40726]
[1730830085777,2.63778611,2455.6,2455.5,4.48006]
[1730830086280,43.43778611,2455.7,2455.5,4.0728]
[1730830086483,43.43778611,2455.7,2455.4,3.2078]
[1730830086484,2.63778611,2455.7,2455.6,4.47925]
[1730830086685,2.63778611,2455.8,2455.7,0.40723]
[1730830086884,2.63778611,2455.8,2455.7,3.61503]
[1730830087189,43.4367199,2455.9,2455.8,0.40721]
[1730830087373,43.4367199,2455.9,2455.8,0.87561]
[1730830088178,40.8,2455.9,2455.8,0.87561]
[1730830088788,43.43512636,2455.9,2455.8,0.87561]
[1730830091289,40.8,2455.9,2455.8,0.87561]
[1730830093186,42.90705748,2455.9,2455.8,1.34161]
[1730830093382,40.8,2455.9,2455.8,1.34161]
[1730830094195,42.90714507,2455.9,2455.8,1.34161]
[1730830095491,3.91731636,2456.0,2455.8,1.34161]
[1730830095492,2.10714507,2456.0,2455.8,8.18397147]
[1730830095696,2.10714507,2456.2,2456.1,0.40716]
[1730830095994,0.11,2456.6,2456.2,0.4415]
[1730830095995,2.10714507,2456.6,2456.2,0.4415]
[1730830096183,2.84012636,2456.8,2456.7,0.40707]
[1730830096184,2.10714507,2456.8,2456.7,0.40707]
[1730830096385,3.16292636,2457.0,2456.8,0.40705]
[1730830096386,2.10714507,2456.9,2456.8,0.40705]
[1730830096790,2.10714507,2456.9,2456.7,0.40706]
[1730830096791,0.40704,2456.9,2456.7,0.40706]
[1730830097189,43.33994507,2457.0,2456.5,4.3378]
[1730830097190,43.74697507,2457.0,2456.5,4.3378]
[1730830097497,41.63983,2457.0,2456.8,0.40705]
[1730830097689,43.74697507,2457.0,2456.8,0.40705]
[1730830097892,41.2328,2457.0,2456.6,0.40708]
[1730830098087,0.40706,2456.8,2456.5,4.74489]
[1730830098393,0.40706,2456.8,2456.6,0.40708]
[1730830098784,0.40706,2456.8,2456.5,4.3378]
[1730830098982,0.40706,2456.8,2456.5,4.7449]
[1730830099384,46.51751654,2457.0,2456.5,4.3378]
[1730830099584,0.40707,2456.7,2456.5,4.3378]
[1730830099987,46.51751654,2457.0,2456.5,4.3378]
[1730830100192,0.40706,2456.8,2456.5,4.7449]
[1730830100602,0.4538,2456.7,2456.5,4.7449]
[1730830101299,0.86087,2456.7,2456.5,4.7449]
[1730830102001,0.86087,2456.7,2456.5,1.5371]
[1730830102797,0.40708,2456.6,2456.5,1.13]
[1730830102995,0.4538,2456.7,2456.4,3.2078]
[1730830103297,0.8575,2456.5,2456.4,3.2078]
[1730830104596,0.40713,2456.3,2456.2,1.13]
[1730830105293,3.6582,2456.5,2455.9,1.97449]
[1730830105499,0.4072,2455.9,2455.8,5.17301]
[1730830105692,0.4072,2455.9,2455.8,4.7658]
[1730830107099,0.4072,2455.9,2455.8,1.558]
[1730830107290,0.4298,2456.0,2455.9,0.4072]
[1730830107798,0.4072,2455.9,2455.8,1.558]
[1730830111099,0.4072,2455.9,2455.8,0.43]
[1730830111693,0.4072,2455.9,2455.8,0.83721]
[1730830112103,0.4072,2455.9,2455.8,0.43]
[1730830112299,0.4072,2455.9,2455.7,3.2078]
[1730830112300,0.40721,2455.8,2455.7,3.61503]
[1730830113198,41.2298,2456.0,2455.7,3.2078]
[1730830113399,0.40721,2455.9,2455.8,0.40721]
[1730830113613,0.40721,2455.8,2455.7,3.61503]
[1730830113794,0.83551,2455.8,2455.7,3.61503]
[1730830114293,0.83551,2455.8,2455.7,0.40723]
[1730830114603,0.40723,2455.7,2455.6,2.40354]
[1730830114900,0.83552,2455.8,2455.7,0.40723]
[1730830115499,0.83552,2455.8,2455.6,2.40354]
[1730830115905,0.83552,2455.8,2455.6,1.9963]
[1730830116096,0.83552,2455.8,2455.7,0.40723]
[1730830116898,0.83552,2455.8,2455.6,2.40354]
[1730830117299,0.83552,2455.8,2455.7,0.40723]
[1730830119308,0.4283,2455.8,2455.6,1.9963]
[1730830119504,0.40723,2455.7,2455.6,0.4393]
[1730830120206,0.40731,2455.3,2455.0,0.40734]
[1730830120397,0.40732,2455.2,2454.9,4.1094]
[1730830120604,0.4073,2455.3,2454.9,4.1094]
[1730830120806,0.4073,2455.3,2455.0,0.40734]
[1730830121011,0.40731,2455.3,2455.0,0.40734]
[1730830121511,0.40732,2455.2,2455.0,0.40734]
[1730830121709,0.40732,2455.2,2455.0,0.40735]
[1730830122213,0.4501,2455.4,2454.9,4.1094]
[1730830122401,0.40725,2455.7,2455.4,0.40727]
[1730830122602,0.40725,2455.7,2455.3,3.2078]
[1730830122603,3.6458,2456.0,2455.5,0.8857]
[1730830122909,0.86859,2456.0,2455.7,3.61502]
[1730830123110,0.4614,2456.0,2455.7,3.61502]
[1730830123313,0.40721,2455.9,2455.7,3.2078]
[1730830124411,0.86859,2456.0,2455.7,3.61502]
[1730830124608,0.86859,2456.0,2455.8,0.40721]
[1730830124911,0.4614,2456.0,2455.7,3.2078]
[1730830125111,0.40721,2455.9,2455.7,3.2078]
[1730830125513,0.86859,2456.0,2455.7,3.61502]
[1730830126212,0.4614,2456.0,2455.8,0.4072]
[1730830126407,0.86859,2456.0,2455.7,3.61502]
[1730830126609,0.4614,2456.0,2455.7,3.61502]
[1730830126808,0.86859,2456.0,2455.7,3.61502]
[1730830127009,0.86859,2456.0,2455.8,0.40721]
[1730830127408,0.86859,2456.0,2455.9,0.4657]
[1730830128414,0.4614,2456.0,2455.9,0.8729]
[1730830128626,0.86536,2456.2,2456.0,0.40718]
[1730830128830,0.40717,2456.1,2455.9,0.87289]
[1730830130021,0.40718,2456.0,2455.9,0.4657]
[1730830130226,0.9283,2456.2,2455.7,3.2078]
[1730830130427,0.9283,2456.2,2455.7,3.61503]
[1730830130428,0.40721,2455.9,2455.7,3.61503]
[1730830131132,0.9283,2456.2,2455.7,3.61503]
[1730830131133,0.40719,2456.0,2455.8,0.40721]
[1730830133227,0.40719,2456.0,2455.7,3.2078]
[1730830133228,0.9283,2456.2,2455.7,3.2078]
[1730830133430,0.40721,2455.9,2455.7,3.2078]
[1730830133723,0.40719,2456.0,2455.8,0.40721]
[1730830134132,2.11026283,2455.9,2455.8,0.4072]
[1730830134933,2.51745283,2456.0,2455.8,0.4072]
[1730830135230,2.11026283,2455.9,2455.8,0.4072]
[1730830136429,2.11026283,2456.0,2455.7,3.2078]
[1730830136628,1.58290797,2455.8,2455.7,3.61503]
[1730830137225,1.58290797,2455.8,2455.7,7.68703]
[1730830137426,1.58290797,2456.0,2455.7,10.45737147]
[1730830137626,1.58290797,2456.1,2456.0,0.40718]
[1730830137826,2.11026283,2456.3,2456.0,3.2078]
[1730830137827,1.58290797,2456.2,2456.0,3.2078]
[1730830138028,1.58290797,2456.2,2456.1,0.40716]
[1730830138427,1.58290797,2456.2,2456.1,4.47836]
[1730830138834,2.51740283,2456.3,2456.2,0.40715]
[1730830141533,2.11026283,2456.3,2456.2,0.40715]
[1730830141827,2.51739283,2456.3,2456.2,0.40715]
[1730830142232,2.11026283,2456.3,2456.2,0.40715]
[1730830142728,2.11026283,2456.3,2456.1,3.61495]
[1730830142934,2.11026283,2456.3,2456.1,3.2078]
[1730830143135,2.51741283,2456.2,2456.1,3.2078]
[1730830143834,4.47835,2456.2,2456.1,3.2078]
[1730830144034,0.4072,2455.9,2455.8,0.40721]
[1730830144334,0.4072,2455.9,2455.7,4.3338]
[1730830144631,1.99203285,2455.8,2455.7,3.2078]
[1730830144834,0.40724,2455.7,2455.5,0.40726]
[1730830145037,1.58466374,2455.6,2455.5,0.40726]
[1730830145337,2.52012498,2455.7,2455.5,0.40726]
[1730830145540,1.58485692,2455.6,2455.5,0.40726]
[1730830145828,1.58484246,2455.6,2455.5,0.40726]
[1730830146034,2.52012498,2455.7,2455.5,0.40726]
[1730830147130,2.95233498,2455.6,2455.5,0.40726]
[1730830147335,2.95233498,2455.6,2455.3,4.3338]
[1730830147336,2.95233498,2455.6,2455.4,0.40727]
[1730830147828,2.11288498,2455.5,2455.4,0.40727]
[1730830148936,2.52014498,2455.5,2455.4,0.40727]
[1730830149131,3.07002854,2455.6,2455.4,0.40727]
[1730830149334,3.47728854,2455.6,2455.3,4.3338]
[1730830149533,3.47728854,2455.6,2455.5,0.40726]
[1730830151331,3.07002854,2455.6,2455.5,0.40726]
[1730830151532,2.11459168,2455.6,2455.5,4.0728]
[1730830151732,2.11459168,2455.7,2455.5,4.0728]
[1730830151927,2.11459168,2455.7,2455.6,4.05565]
[1730830152339,2.11459168,2455.7,2455.6,8.12765]
[1730830153437,1.58641275,2455.7,2455.6,10.89797147]
[1730830153639,1.58641275,2455.8,2455.6,10.89797147]
[1730830153844,1.58641275,2455.8,2455.7,4.94373]
[1730830154244,1.58641275,2455.9,2455.7,4.9816]
[1730830154539,2.11459168,2456.0,2455.8,0.40721]
[1730830154740,1.58600829,2455.9,2455.8,0.40721]
[1730830154945,2.11459168,2456.0,2455.8,3.2078]